bitfinex/quotes_ETHUSD_20241216
["timestamp","ask_amount","ask_price","bid_price","bid_amount"]
[1734371435144,2.48944,4017.0,4015.5,0.4535]
[1734371435349,0.7647,4017.3,4015.5,0.4535]
[1734371435350,0.55,4017.1,4015.5,0.4535]
[1734371435589,0.7649,4016.3,4014.5,0.4535]
[1734371436204,2.49004,4016.0,4014.5,0.4535]
[1734371436367,0.58242417,4016.2,4012.9,0.4535]
[1734371436368,2.49041,4015.4,4012.9,0.4535]
[1734371436574,3.0,4015.3,4012.9,0.4535]
[1734371436769,2.49069,4015.0,4012.9,0.4535]
[1734371437079,0.0309856,4014.9,4012.9,0.4535]
[1734371437294,0.0309856,4014.9,4012.9,0.88362311]
[1734371437880,0.55,4015.6,4012.9,0.88362311]
[1734371438086,0.03013361,4014.8,4012.9,0.4535]
[1734371438287,0.55,4015.1,4012.9,0.4535]
[1734371438452,0.7818,4015.2,4012.9,0.4535]
[1734371438453,0.03012776,4014.7,4012.9,0.4535]
[1734371438656,0.7818,4015.2,4012.9,0.4535]
[1734371438890,0.03012191,4014.6,4013.0,0.43012311]
[1734371439075,0.7818,4015.2,4013.0,0.43012311]
[1734371439404,0.03011606,4014.5,4013.0,0.43012311]
[1734371439699,1.08284642,4015.9,4013.6,0.4535]
[1734371439886,2.49022,4015.7,4013.6,0.4535]
[1734371440194,0.02917718,4015.8,4013.6,0.4535]
[1734371440442,0.02916548,4015.6,4013.6,0.4535]
[1734371440550,0.02909819,4015.7,4013.6,0.4535]
[1734371440753,0.02909819,4015.7,4013.6,1.18362311]
[1734371440999,0.7756,4015.9,4013.6,1.18362311]
[1734371441167,0.02909234,4015.6,4013.6,1.18362311]
[1734371441588,0.02909234,4015.6,4013.7,0.55]
[1734371441881,0.8308,4016.5,4014.1,3.4535]
[1734371442201,0.8308,4016.5,4014.2,0.73012311]
[1734371442202,0.02858722,4015.5,4014.2,0.73012311]
[1734371442422,0.8308,4016.5,4014.2,0.73012311]
[1734371442423,3.32058,4016.5,4014.2,0.73012311]
[1734371442699,0.02858138,4015.4,4014.2,0.73012311]
[1734371443007,0.8308,4016.5,4014.2,0.73012311]
[1734371443554,0.8308,4016.5,4014.3,0.4535]
[1734371443859,0.02863984,4016.4,4014.5,0.4535]
[1734371444092,0.7523,4017.0,4014.5,0.4535]
[1734371444305,0.02863399,4016.3,4014.9,0.4535]
[1734371444506,1.04222411,4017.5,4015.0,0.55]
[1734371444892,0.02789416,4017.4,4015.0,0.55]
[1734371445437,0.75490599,4017.4,4015.4,0.55]
[1734371445732,0.75490599,4017.4,4015.3,3.4535]
[1734371445733,0.75490599,4017.4,4015.6,0.55]
[1734371446225,1.55,4017.3,4015.6,0.55]
[1734371446376,1.5769604,4017.3,4015.5,0.4535]
[1734371446576,1.5769604,4017.3,4015.6,0.55]
[1734371446875,0.8116,4016.9,4015.5,0.4535]
[1734371447308,0.02740628,4016.8,4015.5,0.4535]
[1734371447477,2.48962,4016.7,4015.5,0.4535]
[1734371447677,2.51702044,4016.7,4015.5,0.4535]
[1734371448024,0.02440388,4016.7,4015.5,0.4535]
[1734371448227,2.48968,4016.6,4015.5,0.4535]
[1734371448371,0.25140839,4016.5,4015.5,0.4535]
[1734371448725,0.02729471,4016.6,4015.5,0.4535]
[1734371448726,0.02728302,4016.4,4015.5,0.4535]
[1734371449226,0.25938963,4017.2,4015.5,0.4535]
[1734371449990,0.02713599,4017.1,4015.5,0.4535]
[1734371450545,0.02713599,4017.1,4013.6,2.06210752]
[1734371450546,2.48984,4016.4,4014.5,0.4535]
[1734371450737,2.48991,4016.2,4014.0,0.4535]
[1734371451098,0.02775123,4016.1,4014.2,0.4535]
[1734371451425,0.7869,4017.1,4014.4,0.4535]
[1734371451589,2.48952,4016.9,4014.7,3.4535]
[1734371451929,0.327642,4016.8,4015.1,0.4535]
[1734371452142,0.02779215,4016.8,4015.1,0.4535]
[1734371452320,2.48993,4016.2,4015.1,0.4535]
[1734371452690,2.48623157,4016.2,4015.1,0.4535]
[1734371453029,1.55,4015.7,4015.1,0.4535]
[1734371453536,0.02539562,4015.6,4015.1,0.4535]
[1734371454030,1.55,4015.7,4015.2,0.55]
[1734371455028,1.55,4015.7,4015.1,0.4535]
[1734371457025,1.55,4015.7,4015.2,0.55]
[1734371457734,0.02456045,4015.6,4015.2,0.55]
[1734371457911,0.02456045,4015.6,4015.1,0.4535]
[1734371458990,1.55,4015.7,4015.1,0.4535]
[1734371460629,1.55,4015.7,4014.4,3.42503402]
[1734371460630,0.7503,4015.6,4014.4,3.42503402]
[1734371460945,2.49038,4015.5,4013.8,0.4535]
[1734371461157,0.77486045,4015.6,4013.8,0.4535]
[1734371461436,2.49048,4015.3,4013.8,0.4535]
[1734371461636,0.25150288,4015.2,4013.8,0.4535]
[1734371461936,0.27591461,4015.2,4013.8,0.4535]
[1734371462131,0.02441173,4015.2,4013.8,0.4535]
[1734371462481,0.7503,4015.6,4013.8,0.4535]
[1734371462724,0.02440588,4015.1,4014.1,3.0]
[1734371462936,0.7503,4015.6,4014.1,3.0]
[1734371463154,0.02440003,4015.0,4014.1,3.0]
[1734371463345,0.7503,4015.6,4014.1,3.0]
[1734371463512,0.02285193,4014.9,4014.1,3.0]
[1734371463710,0.24553,4015.5,4014.1,2.99244219]
[1734371463908,0.02284608,4014.8,4014.1,2.99244219]
[1734371464111,0.24553,4015.5,4014.1,2.99244219]
[1734371464495,0.02288117,4015.4,4014.1,2.99244219]
[1734371464804,0.35090012,4015.3,4014.1,2.99244219]
[1734371465005,0.02215903,4015.3,4014.1,2.99244219]
[1734371465424,0.02215903,4015.3,4013.8,0.4535]
[1734371466006,0.24553,4015.5,4013.8,0.4535]
[1734371466457,0.24553,4015.5,4014.1,3.42503402]
[1734371466622,0.7503,4015.6,4014.6,3.42503402]
[1734371466840,1.55,4015.7,4015.1,3.42503402]
[1734371467879,0.7526,4015.6,4013.1,1.03105376]
[1734371468010,0.7526,4014.5,4013.1,3.42503402]
[1734371468212,0.7526,4014.5,4012.8,0.4535]
[1734371468213,0.7526,4014.5,4013.6,3.42503402]
[1734371468638,2.49107,4014.4,4013.6,3.42503402]
[1734371468836,0.324367,4014.3,4013.6,3.42503402]
[1734371469165,2.815457,4014.3,4013.6,3.42503402]
[1734371469312,2.49109,4014.3,4013.6,3.42503402]
[1734371469648,0.7526,4014.5,4013.2,3.0]
[1734371470070,0.7526,4014.5,4013.6,3.42503402]
[1734371470209,0.7526,4014.5,4012.0,2.612]
[1734371470210,0.55,4014.1,4011.5,3.85653199]
[1734371470409,0.379377,4014.0,4011.6,0.02492708]
[1734371470627,0.7526,4014.2,4011.7,0.4535]
[1734371471616,0.7526,4014.2,4011.8,0.55]
[1734371472559,0.7526,4014.2,4011.7,0.4535]
[1734371472560,2.49121,4014.1,4011.6,0.02492349]
[1734371472768,2.49172,4013.3,4011.4,3.0]
[1734371472916,1.001772,4013.2,4011.3,0.1653901]
[1734371473117,2.49203,4012.8,4011.3,0.1653901]
[1734371473566,2.49209,4012.7,4011.3,0.1653901]
[1734371473733,2.4919,4013.0,4011.3,0.1653901]
[1734371473931,2.49246,4012.1,4011.3,0.1653901]
[1734371474158,2.49232,4012.4,4011.3,0.1653901]
[1734371474345,2.49246,4012.1,4011.3,0.1653901]
[1734371474534,0.7526,4012.8,4011.3,0.1653901]
[1734371474535,2.49254,4012.0,4011.3,0.1653901]
[1734371474736,0.7526,4011.8,4011.3,0.1653901]
[1734371476281,0.7526,4011.8,4010.1,3.85653199]
[1734371476282,2.49278,4011.6,4010.1,3.85653199]
[1734371476569,2.49278,4011.6,4010.0,0.23247148]
[1734371476570,0.55,4011.0,4010.0,0.23247148]
[1734371476732,0.55,4010.9,4010.0,0.23247148]
[1734371477066,0.55,4010.5,4010.0,0.23247148]
[1734371477265,0.13515,4010.8,4010.0,0.23247148]
[1734371477417,0.25868135,4010.8,4010.0,0.23247148]
[1734371478216,0.55,4010.7,4010.0,0.23247148]
[1734371478397,2.49365,4010.2,4010.0,0.23247148]
[1734371478563,0.8223,4009.3,4007.6,3.85653199]
[1734371479203,0.8223,4009.3,4007.3,0.1653901]
[1734371479758,0.67737964,4010.1,4007.3,0.1653901]
[1734371479759,0.7821,4009.1,4007.3,0.1653901]
[1734371479957,0.331645,4009.2,4007.3,0.1653901]
[1734371479958,0.7821,4008.3,4007.3,0.1653901]
[1734371480200,0.55,4008.2,4007.3,0.1653901]
[1734371480408,0.55,4008.0,4007.3,0.1653901]
[1734371480573,0.55,4007.7,4007.3,0.1653901]
[1734371480772,0.13321,4008.1,4007.3,0.1653901]
[1734371480965,0.55,4008.0,4007.3,0.1653901]
[1734371481309,0.7821,4007.3,4004.4,0.4535]
[1734371481460,0.55,4007.0,4004.6,0.00731824]
[1734371481806,0.55,4006.8,4004.7,0.04566063]
[1734371482502,0.7764,4006.0,4004.7,0.04566063]
[1734371482721,0.55,4005.9,4004.8,0.01293232]
[1734371483862,0.8261,4006.6,4004.9,3.85653199]
[1734371484093,0.7941,4007.3,4004.9,3.85653199]
[1734371484309,0.7941,4007.3,4005.1,0.4535]
[1734371484458,0.7941,4007.3,4005.5,3.85653199]
[1734371484663,2.4955,4007.2,4004.9,3.85653199]
[1734371484892,0.7941,4007.3,4004.0,0.47846383]
[1734371484893,0.7911,4007.1,4004.1,3.85653199]
[1734371485098,2.49631,4006.0,4004.2,0.04566633]
[1734371485324,2.49614,4006.2,4004.3,0.06444836]
[1734371485602,2.49633,4005.9,4004.3,0.06444836]
[1734371485911,0.7911,4006.4,4004.3,0.06444836]
[1734371485912,0.55,4006.3,4004.3,0.06444836]
[1734371486068,3.97521,4006.3,4004.3,0.06444836]
[1734371486422,2.49614,4006.2,4004.3,0.06444836]
[1734371486759,2.49614,4006.2,4004.2,3.07799212]
[1734371487011,2.49622,4006.1,4004.2,3.07799212]
[1734371487191,0.35604251,4006.0,4004.2,3.07799212]
[1734371487720,1.47911,4006.3,4004.2,3.07799212]
[1734371488409,2.49615,4006.2,4004.2,3.07799212]
[1734371488703,0.55,4006.3,4004.2,3.07799212]
[1734371488704,0.55,4006.3,4004.2,3.0]
[1734371489023,0.55,4005.9,4004.0,0.4535]
[1734371489515,0.55,4006.3,4004.0,0.4535]
[1734371489673,2.49672,4005.3,4004.0,0.4535]
[1734371489878,3.04658,4005.5,4004.0,0.4535]
[1734371490108,2.49667,4005.4,4004.0,0.4535]
[1734371490277,0.7548,4005.1,4003.4,0.4535]
[1734371490635,2.49688,4005.0,4003.7,0.06511433]
[1734371490809,2.49688,4005.0,4003.4,0.4535]
[1734371490810,0.325168,4004.9,4003.5,0.06771098]
[1734371491264,0.55,4004.9,4003.5,0.06771098]
[1734371491467,0.7548,4005.7,4003.5,0.06771098]
[1734371491822,0.55,4005.6,4003.5,0.06771098]
[1734371492220,0.55,4005.1,4003.5,0.06771098]
[1734371492708,0.55,4005.3,4003.5,0.06771098]
[1734371492913,0.55,4005.1,4003.5,0.06771098]
[1734371494114,0.55,4005.0,4003.5,0.06771098]
[1734371494426,0.7837,4004.2,4003.5,0.06771098]
[1734371494567,1.3337,4004.2,4003.5,0.03747132]
[1734371494760,0.55,4004.0,4003.3,0.1653901]
[1734371495210,3.04752,4004.0,4003.3,0.1653901]
[1734371495412,0.55,4004.0,4003.3,0.1653901]
[1734371495753,0.13337,4004.1,4003.3,0.1653901]
[1734371495754,0.758,4003.9,4003.3,0.1653901]
[1734371495889,0.55,4003.8,4003.3,0.1653901]
[1734371496229,0.8164,4003.4,4001.0,3.85653199]
[1734371496379,0.8164,4003.4,4000.7,0.4535]
[1734371496380,0.55,4003.3,4000.7,0.4535]
[1734371496929,0.55,4003.3,4000.8,3.85653199]
[1734371497421,0.55,4003.3,4000.9,0.4535]
[1734371497569,0.55,4003.1,4000.9,0.4535]
[1734371498500,0.8164,4003.4,4001.5,0.4535]
[1734371498728,0.8164,4003.4,4001.5,3.4535]
[1734371499167,0.8164,4003.4,4001.5,0.4535]
[1734371499606,3.31432,4003.4,4001.5,0.4535]
[1734371499828,3.31432,4003.4,4000.8,0.4535]
[1734371499829,0.55,4003.1,4000.8,0.4535]
[1734371500118,2.498,4003.2,4000.8,0.4535]
[1734371500119,0.55,4003.2,4000.8,0.4535]
[1734371500298,0.55,4003.3,4000.8,0.4535]
[1734371500625,0.55,4003.3,4001.2,3.85653199]
[1734371501114,0.55,4003.3,4001.3,3.0]
[1734371501313,0.55,4003.1,4001.3,3.0]
[1734371501517,0.55,4003.3,4001.3,3.0]
[1734371501973,0.55,4003.3,4000.8,0.4535]
[1734371502176,0.55,4002.8,4000.8,0.4535]
[1734371502376,0.55,4002.6,4000.8,0.4535]
[1734371502621,0.434995,4002.5,4000.8,0.4535]
[1734371502924,2.49863,4002.2,4000.8,0.4535]
[1734371503258,0.434995,4002.5,4000.0,10.0]
[1734371503259,0.7517,4002.0,4000.0,10.0]
[1734371503532,2.49903,4001.6,4000.0,10.0]
[1734371503738,0.799903,4001.5,4000.0,10.0]
[1734371503880,0.55,4001.3,4000.0,10.0]
[1734371504227,2.49925,4001.2,4000.0,10.0]
[1734371504433,2.49956,4000.7,4000.0,10.0]
[1734371504607,0.55,4000.9,4000.0,10.0]
[1734371504822,0.55,4000.7,4000.0,10.0]
[1734371504980,0.55,4000.7,3999.3,0.1653901]
[1734371505175,2.49981,4000.3,3999.3,0.1653901]
[1734371505378,0.55,4000.0,3999.3,0.1653901]
[1734371505582,0.7502,4000.1,3997.8,0.4535]
[1734371505583,0.55,3999.5,3997.8,0.4535]
[1734371505827,0.13002,3999.9,3998.1,3.85653199]
[1734371505977,0.25,4002.1,3998.1,3.85653199]
[1734371505978,0.7502,4000.7,3998.1,3.85653199]
[1734371506305,0.7502,4000.7,3996.8,0.27501013]
[1734371506306,0.7502,4000.7,3998.7,3.85653199]
[1734371506639,0.7502,4000.7,3998.1,3.85653199]
[1734371507692,0.7502,4000.7,3998.2,0.55]
[1734371507895,0.7502,4000.7,3998.7,3.85653199]
[1734371508105,0.7502,4000.7,3998.8,3.0]
[1734371508519,0.7502,4000.7,3998.4,3.0]
[1734371508887,0.12911794,4000.9,3998.9,3.85653199]
[1734371509118,0.7692,4001.3,3999.5,3.85653199]
[1734371509423,3.26776,4002.3,4000.2,3.0]
[1734371509640,0.89826197,4002.3,4000.2,3.0]
[1734371509926,0.89826197,4002.3,4000.8,3.4035]
[1734371509927,0.7692,4002.3,4000.8,3.4035]
[1734371510225,0.25,4004.4,3998.7,0.25]
[1734371510226,0.25,4004.5,4001.4,3.0]
[1734371510393,0.4106532,4004.4,4001.5,0.7843]
[1734371510725,2.49751,4004.0,4002.0,3.0]
[1734371510944,0.54003131,4004.4,4002.1,0.7843]
[1734371511100,0.12937811,4004.4,4002.1,0.7843]
[1734371511299,2.49631,4005.9,4003.4,3.85653199]
[1734371511484,1.55,4006.0,4004.1,3.0]
[1734371511681,0.12939223,4005.8,4004.1,3.0]
[1734371512196,1.55,4006.0,4004.6,3.85653199]
[1734371513231,1.55,4006.0,4004.8,0.8278]
[1734371513232,1.49987158,4006.0,4004.8,0.8278]
[1734371513528,1.49987158,4006.0,4004.1,3.0]
[1734371513529,2.49633,4005.9,4004.1,3.0]
[1734371513689,0.14998716,4005.9,4004.1,3.0]
[1734371514026,1.55,4004.9,4004.1,3.0]
[1734371517178,1.55,4004.9,4004.6,3.85653199]
[1734371518281,1.55,4004.9,4004.7,3.0]
[1734371519235,1.705,4004.9,4004.1,3.0]
[1734371519436,2.49739,4004.2,4002.8,3.85653199]
[1734371519658,2.497,4004.8,4002.8,3.85653199]
[1734371519659,2.49751,4004.0,4002.8,3.85653199]
[1734371519957,1.705,4004.9,4002.8,3.85653199]
[1734371520199,0.1705,4004.8,4002.8,3.85653199]
[1734371520517,0.1705,4004.8,4003.4,3.85653199]
[1734371521724,0.1705,4004.8,4003.5,3.0]
[1734371522737,0.1705,4004.8,4002.8,0.55]
[1734371522947,0.1705,4004.8,4002.7,0.81]
[1734371522948,0.7746,4004.7,4002.7,0.81]
[1734371523146,0.24951,4004.6,4002.7,0.81]
[1734371523328,2.49734,4004.3,4002.7,0.81]
[1734371523502,0.24951,4004.6,4002.7,0.81]
[1734371523703,2.49735,4004.3,4002.7,0.81]
[1734371523902,0.24951,4004.6,4002.7,0.81]
[1734371524149,1.55,4003.3,4002.7,0.81]
[1734371524835,0.51030262,4003.3,4003.2,3.0]
[1734371525014,0.1705,4004.8,4003.2,3.0]
[1734371526015,0.1705,4004.8,4003.4,0.7652]
[1734371526220,1.55,4004.9,4003.4,0.7652]
[1734371526746,1.55,4004.9,4003.3,0.55]
[1734371526747,1.55,4004.9,4004.0,0.7652]
[1734371527430,1.55,4004.9,4004.1,0.55]
[1734371528900,1.55,4004.9,4003.9,1.3667]
[1734371529100,1.55,4004.9,4004.4,3.55]
[1734371529339,1.55,4004.9,4004.5,0.8167]
[1734371529546,1.49987158,4006.0,4004.8,0.55]
[1734371529743,1.49987158,4006.0,4005.9,0.7896]
[1734371531555,1.49987158,4006.0,4005.9,1.3396]
[1734371531752,1.49987158,4006.0,4005.9,0.7896]
[1734371532360,1.49987158,4006.0,4005.9,1.3396]
[1734371532824,1.49987158,4006.0,4005.9,2.1592132]
[1734371534043,1.58e-06,4006.0,4005.9,2.1592132]
[1734371534569,1.58e-06,4006.3,4006.0,0.55]
[1734371534713,1.58e-06,4006.3,4006.2,3.85653199]
[1734371534920,1.58e-06,4006.3,4006.2,8.20958793]
[1734371535114,1.58e-06,4006.3,4006.2,9.0875521]
[1734371535769,1.55,4007.3,4006.4,0.832]
[1734371535944,1.55,4007.3,4007.1,0.55]
[1734371536153,1.55,4007.3,4007.2,1.382]
[1734371537649,0.7167,4007.3,4007.2,0.8754]
[1734371537813,0.57631646,4007.3,4007.2,1.6735932]
[1734371538014,0.53036855,4007.3,4007.2,1.6735932]
[1734371538436,2.49379,4010.0,4007.9,7.40653199]
[1734371538641,2.49362,4010.3,4007.9,7.40653199]
[1734371538836,0.95193782,4010.4,4007.9,7.73193199]
[1734371539177,2.49371,4010.1,4007.9,7.73193199]
[1734371539325,2.49362,4010.3,4007.9,7.73193199]
[1734371539529,2.49364,4010.2,4007.9,7.73193199]
[1734371539728,2.49375,4010.1,4007.9,8.50512519]
[1734371540052,3.31583,4010.4,4007.9,8.50512519]
[1734371540423,0.8223,4010.4,4007.9,8.50512519]
[1734371541282,0.8223,4010.4,4008.0,3.55]
[1734371541549,0.8223,4010.4,4008.8,0.55]
[1734371541946,1.55,4010.8,4008.9,0.3257]
[1734371542202,4.04331,4010.8,4009.0,0.55]
[1734371542503,0.482381,4010.7,4008.9,0.3257]
[1734371542788,1.67958174,4010.8,4008.9,0.3257]
[1734371542986,2.49336,4010.7,4008.9,0.3257]
[1734371543702,1.55,4010.8,4009.3,3.55]
[1734371543850,0.23305,4010.7,4009.3,3.55]
[1734371546117,0.23305,4010.7,4009.8,3.85653199]
[1734371546433,0.23305,4010.7,4010.0,0.3257]
[1734371547237,0.803,4010.5,4008.6,0.3257]
[1734371547430,0.803,4010.5,4006.7,0.25]
[1734371547431,2.49345,4010.5,4008.1,0.3257]
[1734371547729,0.8313,4008.8,4007.5,0.3257]
[1734371548819,0.8313,4008.8,4007.5,3.3257]
[1734371549515,0.8313,4008.8,4007.5,0.3257]
[1734371549516,2.49459,4008.7,4007.5,0.3257]
[1734371549735,0.8313,4008.8,4006.9,0.3257]
[1734371549939,6.85653199,4010.1,4006.9,0.3257]
[1734371549940,0.8326,4009.3,4007.4,3.85653199]
[1734371550086,0.8326,4009.3,4006.9,0.3257]
[1734371550087,0.8326,4009.3,4008.0,3.85653199]
[1734371550287,0.28561104,4010.4,4008.0,3.85653199]
[1734371550288,0.8326,4009.8,4008.0,3.85653199]
[1734371550788,0.8326,4010.5,4008.6,3.85653199]
[1734371551127,0.23305,4010.7,4008.6,3.85653199]
[1734371551128,0.23305,4010.7,4009.9,3.8757]
[1734371551928,0.178305,4010.6,4009.9,3.8757]
[1734371552342,0.178305,4010.6,4009.9,3.3257]
[1734371552628,0.178305,4010.6,4009.9,3.0]
[1734371553602,0.178305,4010.6,4009.4,0.3257]
[1734371555344,0.7717,4010.5,4009.3,3.0]
[1734371555690,0.7717,4010.5,4008.9,0.3257]
[1734371555691,0.3443345,4010.4,4008.9,0.3257]
[1734371556436,0.7717,4010.5,4008.9,0.3257]
[1734371557039,0.7717,4010.5,4009.3,3.0]
[1734371557889,0.7717,4010.5,4009.0,0.55]
[1734371558085,0.7717,4010.5,4008.7,3.0]
[1734371558285,3.26516,4010.5,4008.4,0.3257]
[1734371558542,2.8378565,4010.4,4008.4,0.3257]
[1734371558719,0.3443465,4010.4,4008.4,0.3257]
[1734371559046,0.3443465,4010.4,4008.6,3.85653199]
[1734371559223,0.7717,4010.5,4008.6,3.85653199]
[1734371559426,0.7717,4010.5,4009.2,3.85653199]
[1734371559628,0.7717,4010.5,4008.4,0.3257]
[1734371559629,1.55,4010.8,4009.9,3.0]
[1734371560846,1.45221756,4010.8,4009.9,3.0]
[1734371561079,1.45221756,4010.8,4009.6,3.0]
[1734371561207,1.45221756,4010.8,4009.3,0.3257]
[1734371561208,0.7717,4010.6,4009.3,0.3257]
[1734371561905,0.7717,4010.6,4009.0,3.0]
[1734371562118,0.7717,4010.6,4008.9,3.85653199]
[1734371563305,0.7717,4010.6,4009.0,3.55]
[1734371563493,0.23691393,4010.5,4009.0,3.55]
[1734371565390,0.23691393,4010.5,4008.3,4.18223199]
[1734371565640,0.7698,4009.3,4007.7,3.98363564]
[1734371565844,0.7698,4009.3,4007.7,3.85653199]
[1734371566044,3.26403,4009.3,4007.7,3.85653199]
[1734371566223,0.326403,4009.2,4007.7,3.85653199]
[1734371566745,0.804,4010.2,4008.3,3.85653199]
[1734371567319,2.49372,4010.1,4008.3,3.85653199]
[1734371567607,2.4937,4010.1,4008.4,3.0]
[1734371567810,0.32977,4010.0,4008.4,3.0]
[1734371568439,0.804,4010.2,4008.4,3.0]
[1734371568595,0.804,4010.2,4007.8,3.55]
[1734371569039,2.49414,4009.4,4007.7,3.85653199]
[1734371569237,0.8095,4009.3,4007.7,3.85653199]
[1734371569422,0.330364,4009.2,4007.7,3.85653199]
[1734371569625,0.8095,4009.3,4007.7,3.85653199]
[1734371570196,0.8095,4009.3,4007.8,3.55]
[1734371571552,1.55,4008.0,4007.8,3.55]
[1734371571706,0.7617,4011.2,4008.8,3.55]
[1734371572050,0.1653901,4011.3,4010.7,6.85653199]
[1734371572251,0.1653901,4011.3,4010.7,7.29062161]
[1734371572437,0.1653901,4011.3,4010.7,7.61632161]
[1734371572616,0.1653901,4011.3,4010.7,8.41190871]
[1734371572942,0.1653901,4011.3,4010.7,9.06978124]
[1734371572943,0.33746314,4010.8,4010.7,9.06978124]
[1734371573160,0.1653901,4011.3,4010.8,4.09933902]
[1734371573303,0.1653901,4011.3,4010.8,3.75978962]
[1734371573503,0.16238711,4011.3,4010.9,0.3257]
[1734371573752,1.55,4011.6,4011.1,0.8757]
[1734371573899,1.55,4011.6,4011.5,7.40653199]
[1734371574107,1.55,4011.6,4011.5,6.85653199]
[1734371574500,1.55,4011.6,4011.5,7.40653199]
[1734371576434,1.55,4011.6,4011.5,7.73223199]
[1734371576780,1.55,4011.6,4011.5,8.50545519]
[1734371577790,1.55,4011.6,4011.5,4.18223199]
[1734371578278,1.55,4011.6,4011.5,3.85653199]
[1734371579275,1.55,4011.6,4011.5,6.85653199]
[1734371579446,1.55,4011.6,4011.5,7.40653199]
[1734371579629,1.55,4011.6,4011.5,7.73223199]
[1734371579827,1.55,4011.6,4011.5,8.50545519]
[1734371580230,1.55,4011.6,4011.5,7.73223199]
[1734371580431,1.55,4011.6,4010.8,3.85653199]
[1734371580870,1.55,4011.6,4011.4,3.85653199]
[1734371582972,1.55,4011.6,4009.8,0.02492758]
[1734371582973,0.7792,4011.5,4010.2,3.85653199]
[1734371583273,4.98578,4011.4,4009.2,0.3257]
[1734371583571,0.8013,4010.4,4008.7,0.3257]
[1734371583978,2.49339,4010.7,4007.7,3.85653199]
[1734371583979,0.8013,4010.1,4007.7,3.85653199]
[1734371584191,0.55,4010.2,4007.7,3.85653199]
[1734371584192,0.7512,4009.2,4007.7,3.85653199]
[1734371584332,1.075743,4009.2,4007.7,3.85653199]
[1734371585187,0.7512,4009.2,4007.7,3.85653199]
[1734371585950,0.7512,4009.2,4008.4,3.0]
[1734371586159,0.7895,4010.2,4008.4,3.0]
[1734371586357,0.7895,4010.2,4008.5,0.3257]
[1734371587410,0.7895,4010.2,4008.5,1.0439232]
[1734371587684,0.7895,4010.2,4008.5,0.3257]
[1734371588038,0.55,4010.4,4007.8,3.0]
[1734371588233,0.829,4010.1,4007.8,3.0]
[1734371588434,0.55,4010.0,4007.8,3.0]
[1734371588678,3.04379,4010.0,4007.8,3.0]
[1734371588934,0.829,4010.1,4007.8,3.0]
[1734371588935,0.387279,4009.9,4007.8,3.0]
[1734371589237,0.829,4010.1,4008.4,3.0]
[1734371589481,0.829,4010.0,4007.7,3.85653199]
[1734371589779,7.04354,4010.4,4007.1,0.12751069]
[1734371589780,2.379,4010.4,4009.2,3.85653199]
[1734371590000,2.379,4010.4,4009.9,3.85653199]
[1734371590001,1.55,4010.4,4009.9,3.85653199]
[1734371590634,1.55,4010.4,4010.0,3.0]
[1734371591984,1.55,4010.4,4008.6,4.18223199]
[1734371591985,2.6175,4010.4,4008.6,4.18223199]
[1734371592639,2.6175,4010.4,4009.2,3.85653199]
[1734371592835,2.3075,4010.4,4009.2,3.85653199]
[1734371593066,1.55,4010.4,4009.2,3.85653199]
[1734371593375,1.55,4010.4,4009.3,3.0]
[1734371594089,1.55,4010.4,4008.7,3.0]
[1734371594392,1.55,4010.4,4009.9,3.0]
[1734371595199,1.55,4010.4,4009.3,3.0]
[1734371595200,1.86,4010.4,4009.3,3.0]
[1734371595558,0.8084,4010.3,4008.6,4.18223199]
[1734371595753,0.8084,4010.3,4008.6,3.85653199]
[1734371595969,1.86,4010.4,4008.6,3.85653199]
[1734371595970,0.8084,4010.0,4008.6,3.85653199]
[1734371596298,0.7558,4009.8,4007.4,3.85653199]
[1734371596492,0.7558,4008.9,4007.4,3.85653199]
[1734371596691,0.7558,4008.9,4007.5,0.02495113]
[1734371596864,0.7558,4008.9,4007.4,3.85653199]
[1734371597715,0.7558,4008.9,4005.9,0.11994249]
[1734371597716,0.8274,4009.6,4008.8,3.85653199]
[1734371598410,0.8274,4009.6,4008.9,3.0]
[1734371598841,1.86,4010.4,4008.9,3.7182232]
[1734371598842,0.7834,4010.3,4008.9,3.7182232]
[1734371599386,0.7834,4010.3,4009.4,3.85653199]
[1734371599583,0.7834,4010.3,4009.5,3.0]
[1734371599929,1.55,4010.4,4010.1,3.0]
[1734371601055,1.55,4010.4,4007.9,2.04384837]
[1734371601056,0.7834,4010.3,4008.7,3.85653199]
[1734371601339,0.7834,4010.3,4007.3,2.04384837]
[1734371601340,0.7834,4009.9,4008.0,3.85653199]
[1734371601484,3.27723,4009.9,4008.0,3.85653199]
[1734371601686,0.7834,4009.9,4008.0,3.85653199]
[1734371602200,0.7834,4009.9,4008.1,0.3856532]
[1734371602396,0.7834,4009.9,4008.0,3.85653199]
[1734371603020,0.7834,4009.9,4008.1,3.0]
[1734371603743,0.7834,4009.9,4008.2,0.3257]
[1734371603927,0.7834,4009.9,4008.7,3.0]
[1734371604746,0.7834,4009.9,4009.3,3.0]
[1734371604948,1.55,4010.4,4009.4,0.6856532]
[1734371605250,1.55,4010.4,4009.3,3.0]
[1734371606543,1.55,4010.4,4008.7,3.3257]
[1734371608137,1.55,4010.4,4009.3,3.0]
[1734371608307,1.55,4010.4,4009.9,3.0]
[1734371608512,1.55,4010.4,4010.0,0.6856532]
[1734371608725,0.7909,4011.2,4010.0,0.6856532]
[1734371608908,0.7909,4011.2,4010.8,3.0]
[1734371609103,1.55,4011.6,4010.9,0.3257]
[1734371609335,0.40101342,4011.6,4011.5,3.0]
[1734371609537,0.40101342,4011.6,4011.5,7.15653199]